fUSD/lending_fUSD_20240416
["ID","MTS","AMOUNT","RATE_DAILY","PERIOD"]
[322772653,1713276272096,-2035.1,0.00016997,2]
[322772654,1713276272124,-584.44,0.00016997,2]
[322772655,1713276272150,-584.44,0.00016997,2]
[322772656,1713276272176,-584.44,0.00016997,2]
[322772657,1713276272201,-584.44,0.00016997,2]
[322772658,1713276272226,-584.44,0.00016997,2]
[322772659,1713276272251,-584.44,0.00016997,2]
[322772660,1713276272278,-584.44,0.00016997,2]
[322772661,1713276272307,-400.760157,0.00016997,2]
[322772662,1713276272337,-584.44,0.00016997,2]
[322772663,1713276272368,-400.760157,0.00016997,2]
[322772664,1713276272395,-400.760157,0.00016997,2]
[322772665,1713276272421,-584.44,0.00016997,2]
[322772666,1713276272446,-667.7,0.00016997,2]
[322772667,1713276272470,-667.7,0.00016997,2]
[322772668,1713276272497,-667.7,0.00016997,2]
[322772669,1713276272522,-1607.9,0.00016997,2]
[322772670,1713276272548,-667.7,0.00016997,2]
[322772671,1713276272576,-1607.9,0.00016997,2]
[322772672,1713276272605,-667.7,0.00016997,2]
[322772673,1713276272630,-212.47269299,0.00016997,2]
[322772674,1713276272655,-1607.9,0.00016997,2]
[322772675,1713276272680,-667.7,0.00016997,2]
[322772676,1713276272706,-1607.9,0.00016997,2]
[322772677,1713276272730,-667.7,0.00016997,2]
[322772678,1713276272755,-1607.9,0.00016997,2]
[322772679,1713276272781,-667.7,0.00016997,2]
[322772680,1713276272807,-1607.9,0.00016997,2]
[322772681,1713276272834,-667.7,0.00016997,2]
[322772682,1713276272863,-667.7,0.00016997,2]
[322772683,1713276272887,-1607.9,0.00016997,2]
[322772684,1713276272912,-400.760157,0.00016997,2]
[322772685,1713276272938,-1607.9,0.00016997,2]
[322772686,1713276272964,-500.0,0.00016997,2]
[322772687,1713276272990,-500.0,0.00016997,2]
[322772688,1713276273015,-667.7,0.00016997,2]
[322772689,1713276273040,-1607.9,0.00016997,2]
[322772690,1713276273067,-400.760157,0.00016997,2]
[322772691,1713276273094,-500.0,0.00016997,2]
[322772692,1713276273124,-1607.9,0.00016997,2]
[322772693,1713276273151,-667.7,0.00016997,2]
[322772694,1713276273178,-400.760154,0.00016997,2]
[322772695,1713276273204,-1607.9,0.00016997,2]
[322772696,1713276273233,-500.0,0.00016997,2]
[322772697,1713276273258,-500.0,0.00016997,2]
[322772698,1713276273283,-500.0,0.00016997,2]
[322772699,1713276273315,-500.0,0.00016997,2]
[322772700,1713276273344,-500.0,0.00016997,2]
[322772701,1713276273372,-1607.9,0.00016997,2]
[322772702,1713276273398,-500.0,0.00016997,2]
[322772703,1713276273424,-338.07,0.00016997,2]
[322772704,1713276273448,-187.612716,0.00016997,2]
[322772705,1713276273474,-500.0,0.00016997,2]
[322772706,1713276273499,-528.74487849,0.00016997,2]
[322772707,1713276273525,-187.612716,0.00016997,2]
[322772708,1713276273549,-187.612716,0.00016997,2]
[322772709,1713276273574,-514.98,0.00016997,2]
[322772710,1713276273601,-514.98,0.00016997,2]
[322772711,1713276273626,-11563.9,0.00016997,2]
[322772712,1713276273652,-514.98,0.00016997,2]
[322772713,1713276273678,-11563.9,0.00016997,2]
[322772714,1713276273703,-514.98,0.00016997,2]
[322772715,1713276273728,-11563.9,0.00016997,2]
[322772716,1713276273754,-514.98,0.00016997,2]
[322772717,1713276273779,-11563.9,0.00016997,2]
[322772718,1713276273805,-500.0,0.00016997,2]
[322772719,1713276273831,-514.98,0.00016997,2]
[322772720,1713276273857,-11563.9,0.00016997,2]
[322772721,1713276273883,-163.6846741,0.00016997,2]
[322772722,1713276273910,-514.98,0.00016997,2]
[322772723,1713276273935,-11563.9,0.00016997,2]
[322772724,1713276273961,-11563.9,0.00016997,2]
[322772725,1713276273988,-514.98,0.00016997,2]
[322772726,1713276274014,-11563.9,0.00016997,2]
[322772727,1713276274041,-514.98,0.00016997,2]
[322772728,1713276274067,-11563.9,0.00016997,2]
[322772729,1713276274096,-514.98,0.00016997,2]
[322772730,1713276274127,-187.612716,0.00016997,2]
[322772731,1713276274153,-11563.9,0.00016997,2]
[322772732,1713276274180,-514.98,0.00016997,2]
[322772733,1713276274207,-514.98,0.00016997,2]
[322772734,1713276274232,-187.612716,0.00016997,2]
[322772735,1713276274257,-187.612719,0.00016997,2]
[322772736,1713276274284,-1101.2,0.00016997,2]
[322772737,1713276274316,-1101.2,0.00016997,2]
[322772738,1713276274345,-1101.2,0.00016997,2]
[322772739,1713276274382,-1101.2,0.00016997,2]
[322772740,1713276274413,-1101.2,0.00016997,2]
[322772741,1713276274440,-1101.2,0.00016997,2]
[322772742,1713276274467,-1101.2,0.00016997,2]
[322772743,1713276274493,-1101.2,0.00016997,2]
[322772744,1713276274520,-1101.2,0.00016997,2]
[322772745,1713276274860,-1101.2,0.00016997,2]
[322772746,1713276274887,-1517.13,0.00016997,2]
[322772747,1713276274913,-1771.8,0.00016997,2]
[322772748,1713276274940,-1517.13,0.00016997,2]
[322772749,1713276274967,-1771.8,0.00016997,2]
[322772750,1713276274993,-2308.23,0.00016997,2]
[322772751,1713276275020,-1517.13,0.00016997,2]
[322772752,1713276275046,-1771.8,0.00016997,2]
[322772753,1713276275070,-2308.23,0.00016997,2]
[322772754,1713276275096,-1517.13,0.00016997,2]
[322772755,1713276275126,-1771.8,0.00016997,2]
[322772756,1713276275151,-2308.23,0.00016997,2]
[322772757,1713276275175,-1517.13,0.00016997,2]
[322772758,1713276275199,-1771.8,0.00016997,2]
[322772759,1713276275224,-2308.23,0.00016997,2]
[322772760,1713276275249,-1517.13,0.00016997,2]
[322772761,1713276275273,-1771.8,0.00016997,2]
[322772762,1713276275298,-2308.23,0.00016997,2]
[322772763,1713276275322,-1771.8,0.00016997,2]
[322772764,1713276275349,-1517.13,0.00016997,2]
[322772765,1713276275377,-1573.97,0.00016997,2]
[322772766,1713276275406,-2308.23,0.00016997,2]
[322772767,1713276275433,-1771.8,0.00016997,2]
[322772768,1713276275458,-1517.13,0.00016997,2]
[322772769,1713276275483,-1573.97,0.00016997,2]
[322772770,1713276275506,-1771.8,0.00016997,2]
[322772771,1713276275530,-1517.13,0.00016997,2]
[322772772,1713276275555,-1517.13,0.00016997,2]
[322772773,1713276275581,-1771.8,0.00016997,2]
[322772774,1713276275608,-500.0,0.00016997,2]
[322772775,1713276275632,-1771.8,0.00016997,2]
[322772776,1713276275655,-2308.23,0.00016997,2]
[322772777,1713276275680,-500.0,0.00016997,2]
[322772778,1713276275704,-1771.8,0.00016997,2]
[322772779,1713276275728,-2308.23,0.00016997,2]
[322772780,1713276275752,-500.0,0.00016997,2]
[322772781,1713276275776,-2308.23,0.00016997,2]
[322772782,1713276275800,-2308.23,0.00016997,2]
[322772783,1713276275824,-500.0,0.00016997,2]
[322772784,1713276275848,-2308.23,0.00016997,2]
[322772785,1713276275872,-573.52,0.00016997,2]
[322772786,1713276275896,-573.52,0.00016997,2]
[322772787,1713276275925,-2308.23,0.00016997,2]
[322772788,1713276275952,-500.0,0.00016997,2]
[322772789,1713276275978,-573.52,0.00016997,2]
[322772790,1713276276003,-500.0,0.00016997,2]
[322772791,1713276276029,-573.52,0.00016997,2]
[322772792,1713276276053,-500.0,0.00016997,2]
[322772793,1713276276078,-573.52,0.00016997,2]
[322772794,1713276276104,-500.0,0.00016997,2]
[322772795,1713276276135,-573.52,0.00016997,2]
[322772796,1713276276160,-292.85225988,0.00016997,2]
[322772797,1713276276185,-573.52,0.00016997,2]
[322772798,1713276276210,-573.52,0.00016997,2]
[322772799,1713276276234,-573.52,0.00016997,2]
[322772800,1713276276259,-573.52,0.00016997,2]
[322772801,1713276276285,-573.52,0.00016997,2]
[322772802,1713276276311,-573.52,0.00016997,2]
[322772803,1713276276339,-500.0,0.00016997,2]
[322772804,1713276276369,-500.0,0.00016997,2]
[322772805,1713276276394,-500.0,0.00016997,2]
[322772806,1713276276422,-2524.24,0.00016997,2]
[322772807,1713276276447,-559.18543395,0.00016997,2]
[322772808,1713276276471,-2524.24,0.00016997,2]
[322772809,1713276276498,-3679.64,0.00016997,2]
[322772810,1713276276522,-1335.04,0.00016997,2]
[322772811,1713276276546,-2524.24,0.00016997,2]
[322772812,1713276276571,-49775.61,0.00016997,2]
[322772813,1713276276596,-3679.64,0.00016997,2]
[322772814,1713276276625,-1335.04,0.00016997,2]
[322772815,1713276276651,-49775.61,0.00016997,2]
[322772816,1713276276677,-2524.24,0.00016997,2]
[322772817,1713276276701,-3679.64,0.00016997,2]
[322772818,1713276276726,-49775.61,0.00016997,2]
[322772819,1713276276750,-2524.24,0.00016997,2]
[322772820,1713276276774,-49775.61,0.00016997,2]
[322772821,1713276276798,-3679.64,0.00016997,2]
[322772822,1713276276821,-2524.24,0.00016997,2]
[322772823,1713276276845,-49775.61,0.00016997,2]
[322772824,1713276276871,-3679.64,0.00016997,2]
[322772825,1713276276894,-2524.24,0.00016997,2]
[322772826,1713276276918,-3679.64,0.00016997,2]
[322772827,1713276276942,-2524.24,0.00016997,2]
[322772828,1713276276967,-13220.09567691,0.00016997,2]
[322772836,1713276548500,-150.0,0.00015973,2]
[322772837,1713276548526,-162.79479096,0.00015973,2]
[322772838,1713276548556,-484.31774909,0.00015974,2]
[322772839,1713276548582,-1628.35863566,0.00015974,2]
[322772840,1713276548619,-1366.14862536,0.00015974,2]
[322772841,1713276548649,-1584.56510092,0.00015974,2]
[322772842,1713276548673,-840.90607479,0.00015974,2]
[322772843,1713276548718,-2425.47117571,0.00015974,2]
[322772844,1713276548751,-1458.40250418,0.00015974,2]
[322772845,1713276548778,-967.06867153,0.00015975,2]
[322772846,1713276548810,-808.02320619,0.00015975,2]
[322772847,1713276548835,-305.0373345,0.00015976,2]
[322772848,1713276548861,-408.04988804,0.00015977,2]
[322772849,1713276548887,-904.36074698,0.00015977,2]
[322772850,1713276548931,-2425.47117571,0.00015977,2]
[322772851,1713276548979,-443.32586535,0.00015977,2]
[322772852,1713276549005,-1982.14531036,0.00016046,2]
[322772853,1713276549061,-1035.47188964,0.00016046,2]
[322772854,1713276549086,-952.97709067,0.00016147,2]
[322772855,1713276549115,-437.0221954,0.00016251,2]
[322772856,1713276549160,-184.88371933,0.00016251,2]
[322772857,1713276549194,-549.68,0.00016251,2]
[322772858,1713276549225,-650.87,0.00016252,2]
[322772859,1713276549250,-999.99,0.00016252,2]
[322772860,1713276549274,-40.04745638,0.00016252,2]
[322772861,1713276549305,-459.94254362,0.00016252,2]
[322772862,1713276549330,-1222.95023345,0.000165,2]
[322772863,1713276549356,-155.27538761,0.00016655,2]
[322772864,1713276549383,-255.8634,0.00016797,2]
[322772865,1713276549409,-331.43961103,0.00016797,2]
[322772866,1713276549442,-2425.47117571,0.00016797,2]
[322772867,1713276549540,-939.93321326,0.00016797,2]
[322772868,1713276549571,-1485.53796245,0.00016797,2]
[322772869,1713276557147,-1504.02328117,0.00017,5]
[322772870,1713276573337,-729.45999995,0.00016147,2]
[322772871,1713276618709,529.14,0.00014161,2]
[322772882,1713276631703,-1012.75,0.00016107,2]
[322772884,1713276631713,-93.18867677,0.00016147,2]
[322772887,1713276631722,-529.14,0.00016425,2]
[322772890,1713276631732,-250.88,0.000167,2]
[322772891,1713276631742,-183.387544,0.00016712,2]
[322772893,1713276631752,-649.7042756,0.00016797,2]
[322772896,1713276631763,-2174.51176195,0.00016797,2]
[322772897,1713276631772,-348.28059388,0.00016895,2]
[322772899,1713276631782,-10000.0,0.00016896,2]
[322772901,1713276631791,-1000.0,0.00016896,2]
[322772903,1713276631800,-870.40184776,0.00016896,2]
[322772905,1713276631810,-1500.0,0.000169,2]
[322772906,1713276631819,-1500.0,0.000169,2]
[322772907,1713276631828,-1500.0,0.000169,2]
[322772908,1713276631837,-1500.0,0.000169,2]
[322772909,1713276631846,-1500.0,0.000169,2]
[322772910,1713276631855,-1500.0,0.000169,2]
[322772911,1713276631871,-1500.0,0.000169,2]
[322772912,1713276631881,-937.98,0.000169,2]
[322772913,1713276631891,-150.0,0.000169,2]
[322772914,1713276631900,-337.49,0.000169,2]
[322772915,1713276631910,-10000.0,0.0001697,2]
[322772916,1713276631919,-4575.75270794,0.00016978,2]
[322772917,1713276631928,-180.80177667,0.00016985,2]
[322772918,1713276631938,-427.95993644,0.00016987,2]
[322772919,1713276631947,-3836.03,0.00016993,2]
[322772920,1713276631957,-3599.42,0.00016993,2]
[322772921,1713276631966,-500.0,0.00016993,2]
[322772922,1713276631975,-4206.06,0.00016993,2]
[322772923,1713276631986,-521.01,0.00016993,2]
[322772924,1713276631995,-500.0,0.00016993,2]
[322772925,1713276632004,-567.18,0.00016993,2]
[322772926,1713276632014,-954.28,0.00016993,2]
[322772927,1713276632023,-2283.85,0.00016993,2]
[322772928,1713276632032,-853.59,0.00016993,2]
[322772929,1713276632041,-673.65,0.00016993,2]
[322772930,1713276632051,-500.0,0.00016993,2]
[322772931,1713276632059,-1754.23,0.00016993,2]
[322772932,1713276632068,-500.0,0.00016993,2]
[322772933,1713276632077,-500.0,0.00016993,2]
[322772934,1713276632086,-500.0,0.00016993,2]
[322772935,1713276632095,-2197.42,0.00016993,2]
[322772936,1713276632105,-500.0,0.00016993,2]
[322772937,1713276632117,-500.0,0.00016993,2]
[322772938,1713276632130,-1237.93,0.00016993,2]
[322772939,1713276632140,-1786.22,0.00016993,2]
[322772940,1713276632149,-500.0,0.00016993,2]
[322772942,1713276632159,-5300.12,0.00016993,2]
[322772944,1713276632169,-500.0,0.00016993,2]
[322772945,1713276632178,-1038.09,0.00016993,2]
[322772946,1713276632188,-695.35,0.00016993,2]
[322772947,1713276632198,-5400.19,0.00016993,2]
[322772948,1713276632207,-500.0,0.00016993,2]
[322772949,1713276632216,-504.72,0.00016993,2]
[322772950,1713276632226,-500.0,0.00016993,2]
[322772951,1713276632235,-1070.62435822,0.00016993,2]
[322772952,1713276632244,-305.63695622,0.00016993,2]
[322772953,1713276632254,-2299.77,0.00016993,2]
[322772954,1713276632264,-190.58520904,0.00016993,2]
[322772955,1713276632273,-500.0,0.00016993,2]
[322772956,1713276632282,-990.62994113,0.00016993,2]
[322772957,1713276632292,-500.0,0.00016993,2]
[322772958,1713276632302,-500.0,0.00016993,2]
[322772959,1713276632311,-500.0,0.00016993,2]
[322772960,1713276632320,-1387.19,0.00016993,2]
[322772961,1713276632330,-500.0,0.00016993,2]
[322772962,1713276632340,-4912.08,0.00016993,2]
[322772963,1713276632349,-500.0,0.00016993,2]
[322772964,1713276632358,-2293.89,0.00016993,2]
[322772965,1713276632373,-500.0,0.00016993,2]
[322772966,1713276632382,-500.0,0.00016993,2]
[322772967,1713276632391,-500.0,0.00016993,2]
[322772968,1713276632400,-500.0,0.00016993,2]
[322772969,1713276632409,-500.0,0.00016993,2]
[322772970,1713276632418,-500.0,0.00016994,2]
[322772971,1713276632426,-500.0,0.00016994,2]
[322772972,1713276632435,-540.91985537,0.00016994,2]
[322772973,1713276632449,-500.0,0.00016994,2]
[322772974,1713276632458,-500.0,0.00016994,2]
[322772975,1713276632468,-500.0,0.00016994,2]
[322772976,1713276632478,-500.0,0.00016994,2]
[322772977,1713276632488,-500.0,0.00016994,2]
[322772978,1713276632497,-500.0,0.00016994,2]
[322772979,1713276632506,-500.0,0.00016994,2]
[322772980,1713276632516,-500.0,0.00016994,2]
[322772981,1713276632525,-500.0,0.00016994,2]
[322772982,1713276632535,-501.97596554,0.00016994,2]
[322772983,1713276632544,-500.0,0.00016994,2]
[322772984,1713276632553,-500.0,0.00016994,2]
[322772985,1713276632562,-500.0,0.00016994,2]
[322772986,1713276632571,-500.0,0.00016994,2]
[322772987,1713276632580,-500.0,0.00016994,2]
[322772988,1713276632591,-501.3084378,0.00016994,2]
[322772989,1713276632600,-500.0,0.00016994,2]
[322772990,1713276632609,-500.0,0.00016994,2]
[322772991,1713276632621,-500.35783683,0.00016994,2]
[322772992,1713276632630,-500.0,0.00016994,2]
[322772993,1713276632639,-500.0,0.00016994,2]
[322772994,1713276632647,-500.96595826,0.00016994,2]
[322772995,1713276632656,-500.0,0.00016994,2]
[322772996,1713276632665,-500.0,0.00016994,2]
[322772997,1713276632674,-500.0,0.00016994,2]
[322772998,1713276632683,-500.0,0.00016994,2]
[322772999,1713276632696,-500.0,0.00016994,2]
[322773000,1713276632707,-500.0,0.00016994,2]
[322773001,1713276632718,-500.0,0.00016994,2]
[322773002,1713276632730,-500.00384946,0.00016994,2]
[322773003,1713276632740,-657.45,0.00016994,2]
[322773004,1713276632751,-155.31159524,0.00016994,2]
[322773005,1713276632762,-500.0,0.00016994,2]
[322773006,1713276632773,-500.0,0.00016994,2]
[322773007,1713276632783,-500.0,0.00016994,2]
[322773008,1713276632793,-500.0,0.00016994,2]
[322773009,1713276632802,-490.78498239,0.00016994,2]
[322773010,1713276632813,-500.0,0.00016994,2]
[322773011,1713276632824,-500.0,0.00016994,2]
[322773012,1713276632834,-500.0,0.00016994,2]
[322773013,1713276632845,-661.01,0.00016994,2]
[322773014,1713276632855,-228.28948632,0.00016994,2]
[322773015,1713276632869,-502.81060529,0.00016994,2]
[322773016,1713276632880,-271.68,0.00016994,2]
[322773017,1713276632891,-500.0,0.00016994,2]
[322773018,1713276632902,-500.0,0.00016994,2]
[322773019,1713276632913,-500.0,0.00016994,2]
[322773020,1713276632924,-500.0,0.00016994,2]
[322773021,1713276632934,-426.45057484,0.00016994,2]
[322773022,1713276632945,-500.0,0.00016994,2]
[322773023,1713276632956,-500.0,0.00016994,2]
[322773024,1713276632965,-500.0,0.00016994,2]
[322773025,1713276632974,-500.0,0.00016994,2]
[322773026,1713276632985,-500.45616723,0.00016994,2]
[322773027,1713276632995,-500.0,0.00016994,2]
[322773028,1713276633007,-500.0,0.00016994,2]
[322773029,1713276633018,-500.0,0.00016994,2]
[322773030,1713276633028,-500.0,0.00016994,2]
[322773031,1713276633039,-500.0,0.00016994,2]
[322773032,1713276633049,-500.0,0.00016994,2]
[322773033,1713276633060,-500.0,0.00016994,2]
[322773034,1713276633070,-500.0,0.00016994,2]
[322773035,1713276633081,-500.0,0.00016994,2]
[322773036,1713276633092,-500.0,0.00016994,2]
[322773037,1713276633104,-500.0077417,0.00016994,2]
[322773038,1713276633114,-500.0,0.00016994,2]
[322773039,1713276633129,-565.61,0.00016994,2]
[322773040,1713276633138,-500.0,0.00016994,2]
[322773041,1713276633148,-500.0,0.00016994,2]
[322773042,1713276633157,-500.0,0.00016994,2]
[322773043,1713276633166,-500.0,0.00016994,2]
[322773044,1713276633178,-975.69,0.00016994,2]
[322773045,1713276633189,-500.0,0.00016994,2]
[322773046,1713276633200,-216.35454897,0.00016994,2]
[322773047,1713276633211,-303.11082553,0.00016994,2]
[322773048,1713276633221,-500.0,0.00016994,2]
[322773049,1713276633233,-196.39178072,0.00016994,2]
[322773050,1713276633244,-500.0,0.00016994,2]
[322773051,1713276633254,-500.0,0.00016994,2]
[322773052,1713276633265,-500.0,0.00016994,2]
[322773053,1713276633275,-500.0,0.00016994,2]
[322773054,1713276633285,-500.0,0.00016994,2]
[322773055,1713276633296,-501.37124824,0.00016994,2]
[322773056,1713276633306,-500.0,0.00016994,2]
[322773057,1713276633316,-500.0,0.00016994,2]
[322773058,1713276633326,-500.0,0.00016994,2]
[322773059,1713276633337,-500.0,0.00016994,2]
[322773060,1713276633347,-500.0,0.00016994,2]
[322773061,1713276633358,-502.06851876,0.00016994,2]
[322773062,1713276633375,-500.0,0.00016994,2]
[322773063,1713276633386,-463.77982687,0.00016994,2]
[322773064,1713276633397,-409.4983541,0.00016994,2]
[322773065,1713276633408,-607.09,0.00016994,2]
[322773066,1713276633419,-500.0,0.00016994,2]
[322773067,1713276633430,-393.7314115,0.00016994,2]
[322773068,1713276633444,-500.0,0.00016994,2]
[322773069,1713276633458,-310.0,0.00016994,2]
[322773070,1713276633469,-500.0,0.00016994,2]
[322773071,1713276633482,-192.96354026,0.00016994,2]
[322773072,1713276633491,-500.0,0.00016994,2]
[322773073,1713276633501,-500.0,0.00016994,2]
[322773074,1713276633512,-500.0,0.00016994,2]
[322773075,1713276633521,-500.48897579,0.00016994,2]
[322773076,1713276633531,-500.0,0.00016994,2]
[322773077,1713276633540,-500.0,0.00016994,2]
[322773078,1713276633551,-357.70668432,0.00016994,2]
[322773079,1713276633561,-500.0,0.00016994,2]
[322773080,1713276633572,-517.94,0.00016994,2]
[322773081,1713276633582,-500.793527,0.00016994,2]
[322773082,1713276633593,-500.0,0.00016994,2]
[322773083,1713276633603,-500.0,0.00016994,2]
[322773084,1713276633614,-500.0,0.00016994,2]
[322773085,1713276633629,-500.0,0.00016994,2]
[322773086,1713276633641,-500.0,0.00016994,2]
[322773087,1713276633652,-411.26214315,0.00016994,2]
[322773088,1713276633663,-500.0,0.00016994,2]
[322773089,1713276633674,-500.0,0.00016994,2]
[322773090,1713276633684,-500.0,0.00016994,2]
[322773091,1713276633694,-500.66894385,0.00016994,2]
[322773092,1713276633703,-500.0,0.00016994,2]
[322773093,1713276633713,-500.0,0.00016994,2]
[322773094,1713276633723,-8161.41,0.00016994,2]
[322773095,1713276633733,-500.0,0.00016994,2]
[322773096,1713276633743,-233.99580292,0.00016994,2]
[322773097,1713276633753,-946.55,0.00016994,2]
[322773098,1713276633763,-500.0,0.00016994,2]
[322773099,1713276633773,-500.0,0.00016994,2]
[322773100,1713276633783,-500.0,0.00016994,2]
[322773101,1713276633793,-490.90009338,0.00016994,2]
[322773102,1713276633803,-804.72,0.00016994,2]
[322773103,1713276633813,-258.81633041,0.00016994,2]
[322773104,1713276633823,-500.0,0.00016994,2]
[322773105,1713276633833,-500.0,0.00016994,2]
[322773106,1713276633843,-500.0,0.00016994,2]
[322773107,1713276633853,-3535.3,0.00016994,2]
[322773108,1713276633869,-208.19790437,0.00016994,2]
[322773109,1713276633879,-500.0,0.00016994,2]
[322773110,1713276633889,-500.0,0.00016994,2]
[322773111,1713276633899,-500.0,0.00016994,2]
[322773112,1713276633909,-944.91,0.00016994,2]
[322773113,1713276633919,-405.98844478,0.00016994,2]
[322773114,1713276633930,-286.27782715,0.00016994,2]
[322773115,1713276633940,-575.62,0.00016994,2]
[322773116,1713276633951,-448.00900964,0.00016994,2]
[322773117,1713276633961,-230.4576426,0.00016994,2]
[322773118,1713276633971,-6369.86,0.00016994,2]
[322773119,1713276633982,-500.0,0.00016994,2]
[322773120,1713276633992,-515.93,0.00016994,2]
[322773121,1713276634002,-227.17260818,0.00016994,2]
[322773122,1713276634012,-398.29483318,0.00016994,2]
[322773123,1713276634022,-500.0,0.00016994,2]
[322773124,1713276634033,-325.15823289,0.00016994,2]
[322773125,1713276634044,-1026.75,0.00016994,2]
[322773126,1713276634054,-177.80982357,0.00016994,2]
[322773127,1713276634064,-500.0,0.00016994,2]
[322773128,1713276634074,-500.0,0.00016994,2]
[322773129,1713276634084,-230.93063049,0.00016994,2]
[322773130,1713276634095,-500.0,0.00016994,2]
[322773131,1713276634105,-500.0,0.00016994,2]
[322773132,1713276634118,-273.76294584,0.00016994,2]
[322773133,1713276634128,-501.38190025,0.00016994,2]
[322773134,1713276634139,-609.54,0.00016994,2]
[322773135,1713276634149,-500.68847945,0.00016994,2]
[322773136,1713276634159,-520.04,0.00016994,2]
[322773137,1713276634170,-500.0,0.00016994,2]
[322773138,1713276634181,-500.0,0.00016994,2]
[322773139,1713276634191,-500.0,0.00016994,2]
[322773140,1713276634200,-500.0,0.00016994,2]
[322773141,1713276634210,-224.42042329,0.00016994,2]
[322773142,1713276634220,-306.35935627,0.00016994,2]
[322773143,1713276634230,-239.78911856,0.00016994,2]
[322773144,1713276634241,-502.82588198,0.00016994,2]
[322773145,1713276634251,-500.0,0.00016994,2]
[322773146,1713276634261,-412.60787815,0.00016994,2]
[322773147,1713276634272,-1046.74,0.00016994,2]
[322773148,1713276634282,-155.77444487,0.00016994,2]
[322773149,1713276634292,-600.55131834,0.00016994,2]
[322773150,1713276634302,-500.0,0.00016994,2]
[322773151,1713276634312,-500.0,0.00016994,2]
[322773152,1713276634323,-500.0,0.00016994,2]
[322773153,1713276634333,-1995.06,0.00016994,2]
[322773154,1713276634343,-500.0,0.00016994,2]
[322773155,1713276634353,-500.0,0.00016994,2]
[322773156,1713276634364,-500.0,0.00016994,2]
[322773157,1713276634376,-3462.03,0.00016994,2]
[322773158,1713276634386,-500.0,0.00016994,2]
[322773159,1713276634397,-229.33289171,0.00016994,2]
[322773160,1713276634407,-500.64226224,0.00016994,2]
[322773161,1713276634418,-500.0,0.00016994,2]
[322773162,1713276634428,-500.0,0.00016994,2]
[322773163,1713276634444,-500.66025363,0.00016994,2]
[322773164,1713276634454,-500.0,0.00016994,2]
[322773165,1713276634465,-500.0,0.00016994,2]
[322773166,1713276634476,-319.49881873,0.00016994,2]
[322773167,1713276634487,-1186.69,0.00016994,2]
[322773168,1713276634497,-500.0,0.00016994,2]
[322773169,1713276634507,-500.0,0.00016994,2]
[322773170,1713276634519,-331.91085988,0.00016994,2]
[322773171,1713276634530,-500.0,0.00016994,2]
[322773172,1713276634540,-172.79924207,0.00016994,2]
[322773173,1713276634550,-634.8,0.00016994,2]
[322773174,1713276634560,-490.87369165,0.00016994,2]
[322773175,1713276634570,-1274.67,0.00016994,2]
[322773176,1713276634580,-500.0,0.00016994,2]
[322773177,1713276634591,-500.0,0.00016994,2]
[322773178,1713276634601,-328.29978349,0.00016994,2]
[322773179,1713276634611,-184.09793169,0.00016994,2]
[322773180,1713276634625,-500.0,0.00016994,2]
[322773181,1713276634636,-500.0,0.00016994,2]
[322773182,1713276634646,-500.0,0.00016994,2]
[322773183,1713276634657,-500.0,0.00016994,2]